[Event "ONJK FGH 2"]
[Site "Enschede, Netherlands"]
[Date "2022.08.13"]
[Round "8.1"]
[White "Ma, Tim"]
[Black "De Wit, Jim"]
[Result "1-0"]
[TimeControl "25min + 10sec/move"]
[WhiteElo "757"]
[BlackElo "889"]

1. e4 {[%clk 00:25:18]} {[%emt 00:00:01]} c5 {[%clk 00:25:19]} {[%emt
00:00:02]} 2. Nf3 {[%clk 00:25:26]} d6 {[%clk 00:25:27]} {[%emt 00:00:03]} 3.
d4 cxd4 4. Nxd4 {[%clk 00:25:41]} {[%emt 00:00:01]} Nc6 {[%clk 00:25:43]}
{[%emt 00:00:03]} 5. Nxc6 {[%clk 00:25:44]} {[%emt 00:00:05]} bxc6 {[%clk
00:25:50]} {[%emt 00:00:04]} 6. Nc3 {[%clk 00:25:52]} {[%emt 00:00:03]} e5
{[%clk 00:25:55]} {[%emt 00:00:04]} 7. Bc4 {[%clk 00:25:58]} {[%emt 00:00:04]}
Nf6 {[%clk 00:26:02]} {[%emt 00:00:03]} 8. Bg5 {[%clk 00:26:02]} {[%emt
00:00:07]} Be7 {[%clk 00:26:10]} {[%emt 00:00:01]} 9. O-O {[%clk 00:26:08]}
{[%emt 00:00:03]} O-O {[%clk 00:26:16]} {[%emt 00:00:05]} 10. Qd2 {[%clk
00:25:47]} {[%emt 00:00:31]} Bd7 {[%clk 00:26:03]} {[%emt 00:00:21]} 11. Rad1
{[%clk 00:25:48]} {[%emt 00:00:12]} Qc7 {[%clk 00:25:42]} {[%emt 00:00:30]} 12.
Bxf6 {[%clk 00:25:46]} {[%emt 00:00:11]} Bxf6 {[%clk 00:25:44]} {[%emt
00:00:09]} 13. Qxd6 {[%emt 00:00:12]} Qxd6 {[%clk 00:25:50]} 14. Rxd6 {[%clk
00:25:51]} {[%emt 00:00:05]} Rad8 {[%clk 00:25:54]} {[%emt 00:00:06]} 15. Rfd1
{[%clk 00:25:44]} {[%emt 00:00:19]} Bg4 {[%clk 00:25:19]} {[%emt 00:00:44]} 16.
Rxd8 {[%clk 00:25:34]} {[%emt 00:00:19]} Bxd8 {[%clk 00:25:26]} {[%emt
00:00:04]} 17. f3 {[%clk 00:25:38]} {[%emt 00:00:06]} Bb6+ {[%clk 00:25:30]}
{[%emt 00:00:06]} 18. Kf1 {[%clk 00:25:37]} {[%emt 00:00:11]} Bc8 {[%clk
00:25:25]} {[%emt 00:00:14]} 19. Rd6 {[%clk 00:25:29]} {[%emt 00:00:19]} Bb7
{[%clk 00:25:20]} {[%emt 00:00:14]} 20. b4 {[%clk 00:25:14]} {[%emt 00:00:27]}
Bd4 {[%clk 00:25:06]} {[%emt 00:00:17]} 21. Ne2 {[%clk 00:25:19]} {[%emt
00:00:13]} Bb6 {[%clk 00:24:39]} {[%emt 00:00:36]} 22. a4 {[%clk 00:25:24]}
{[%emt 00:00:05]} Ba8 {[%clk 00:23:44]} {[%emt 00:01:05]} 23. a5 {[%clk
00:25:00]} {[%emt 00:00:34]} Be3 {[%clk 00:22:58]} {[%emt 00:00:57]} 24. c3
{[%clk 00:24:06]} {[%emt 00:01:04]} Kh8 {[%clk 00:21:41]} {[%emt 00:01:26]} 25.
Rd7 {[%clk 00:23:36]} {[%emt 00:00:40]} Kg8 {[%clk 00:21:39]} {[%emt 00:00:09]}
26. Re7 {[%clk 00:23:08]} {[%emt 00:00:40]} Bf4 {[%clk 00:21:24]} {[%emt
00:00:26]} 27. Nxf4 {[%clk 00:23:09]} {[%emt 00:00:08]} exf4 {[%clk 00:21:32]}
{[%emt 00:00:04]} 28. Rxa7 {[%clk 00:23:13]} {[%emt 00:00:06]} g6 {[%clk
00:21:30]} {[%emt 00:00:12]} 29. g3 {[%clk 00:23:17]} {[%emt 00:00:06]} fxg3
{[%clk 00:21:37]} {[%emt 00:00:02]} 30. hxg3 {[%clk 00:23:26]} Kg7 {[%clk
00:21:31]} {[%emt 00:00:17]} 31. Kf2 {[%clk 00:23:34]} {[%emt 00:00:02]} Kf6
{[%clk 00:21:38]} {[%emt 00:00:02]} 32. Ke3 {[%clk 00:23:43]} {[%emt 00:00:02]}
Ke5 {[%clk 00:21:45]} {[%emt 00:00:03]} 33. Rxf7 {[%clk 00:23:42]} {[%emt
00:00:11]} Rxf7 {[%emt 00:00:02]} 34. Bxf7 {[%emt 00:00:03]} Kf6 {[%clk
00:21:41]} {[%emt 00:00:08]} 35. Bc4 {[%clk 00:23:40]} {[%emt 00:00:13]} Ke5
{[%clk 00:21:39]} {[%emt 00:00:12]} 36. b5 {[%clk 00:23:49]} {[%emt 00:00:02]}
cxb5 {[%clk 00:21:45]} {[%emt 00:00:03]} 37. Bxb5 {[%clk 00:23:57]} {[%emt
00:00:03]} Kd6 {[%clk 00:21:52]} {[%emt 00:00:02]} 38. c4 {[%clk 00:24:03]}
{[%emt 00:00:04]} Kc5 {[%clk 00:22:01]} {[%emt 00:00:01]} 39. a6 {[%clk
00:24:12]} {[%emt 00:00:02]} Bc6 {[%clk 00:21:45]} {[%emt 00:00:25]} 40. f4
{[%clk 00:24:17]} {[%emt 00:00:06]} Bxb5 {[%clk 00:21:51]} {[%emt 00:00:03]} 41.
cxb5 {[%clk 00:24:25]} {[%emt 00:00:02]} Kb6 {[%clk 00:21:56]} {[%emt
00:00:05]} 42. e5 {[%clk 00:24:32]} {[%emt 00:00:03]} Kc7 {[%clk 00:22:03]}
{[%emt 00:00:03]} 43. e6 {[%clk 00:24:39]} {[%emt 00:00:03]} Kd6 {[%clk
00:22:12]} 44. a7 {[%clk 00:24:48]} Kxe6 {[%clk 00:22:18]} {[%emt 00:00:02]} 45.
a8=Q {[%clk 00:24:51]} {[%emt 00:00:04]} Kd6 {[%clk 00:22:25]} {[%emt
00:00:09]} 46. b6 {[%clk 00:24:58]} {[%emt 00:00:04]} Kd7 {[%clk 00:22:33]}
{[%emt 00:00:01]} 47. b7 {[%clk 00:25:05]} {[%emt 00:00:04]} Kc7 {[%clk
00:22:42]} 48. b8=R {[%emt 00:00:05]} Kd7 {[%emt 00:00:03]} 49. Qb7+ {[%clk
00:25:04]} {[%emt 00:00:03]} Ke6 {[%clk 00:22:49]} {[%emt 00:00:02]} 50. Re8+
{[%clk 00:25:11]} {[%emt 00:00:02]} Kd6 {[%clk 00:22:58]} {[%emt 00:00:02]} 51.
Qe7+ {[%clk 00:25:19]} {[%emt 00:00:03]} Kc6 {[%clk 00:23:06]} {[%emt
00:00:01]} 52. Rd8 {[%clk 00:25:26]} {[%emt 00:00:03]} Kc5 {[%clk 00:23:14]}
{[%emt 00:00:02]} 53. Qc7+ {[%clk 00:25:35]} Kb5 {[%clk 00:23:23]} {[%emt
00:00:01]} 54. Rb8+ {[%clk 00:25:44]} {[%emt 00:00:02]} Ka5 {[%clk 00:23:32]}
55. Qa7# {[%clk 00:25:42]} 1-0

[Event "ONJK FGH 2"]
[Site "Enschede, Netherlands"]
[Date "2022.08.13"]
[Round "8.3"]
[White "Georgopoulos-Karbouniaris"]
[Black "Mousa, Besher"]
[Result "1-0"]
[TimeControl "25min + 10sec/move"]
[WhiteElo "787"]
[BlackElo "782"]

1. e4 {[%clk 00:25:19]} e5 {[%clk 00:25:12]} {[%emt 00:00:09]} 2. c3 {[%clk
00:25:27]} Nf6 {[%clk 00:25:12]} {[%emt 00:00:10]} 3. d4 {[%clk 00:25:34]}
{[%emt 00:00:03]} Nc6 {[%clk 00:25:13]} {[%emt 00:00:09]} 4. dxe5 {[%clk
00:25:37]} {[%emt 00:00:07]} Nxe5 {[%clk 00:25:20]} {[%emt 00:00:02]} 5. Bf4
{[%clk 00:25:45]} {[%emt 00:00:04]} Nc6 {[%clk 00:25:07]} {[%emt 00:00:23]} 6.
Nf3 {[%clk 00:25:50]} {[%emt 00:00:05]} Qe7 {[%clk 00:25:01]} {[%emt 00:00:15]}
7. Be2 {[%clk 00:25:38]} {[%emt 00:00:22]} d6 {[%clk 00:24:52]} {[%emt
00:00:20]} 8. Nbd2 {[%clk 00:25:38]} {[%emt 00:00:09]} Bd7 {[%clk 00:24:55]}
{[%emt 00:00:07]} 9. Bg5 {[%clk 00:25:46]} {[%emt 00:00:03]} h6 {[%clk
00:24:58]} {[%emt 00:00:06]} 10. Bh4 {[%clk 00:25:54]} {[%emt 00:00:02]} g5
{[%clk 00:25:05]} {[%emt 00:00:03]} 11. Bg3 {[%clk 00:25:59]} {[%emt 00:00:05]}
O-O-O {[%clk 00:25:11]} {[%emt 00:00:05]} 12. O-O {[%clk 00:26:02]} {[%emt
00:00:06]} Nxe4 {[%clk 00:24:53]} {[%emt 00:00:28]} 13. Nxe4 {[%clk 00:25:55]}
{[%emt 00:00:17]} Qxe4 {[%clk 00:24:56]} {[%emt 00:00:07]} 14. Re1 {[%clk
00:25:58]} {[%emt 00:00:07]} Qg6 {[%clk 00:24:38]} {[%emt 00:00:27]} 15. Bd3
{[%clk 00:26:03]} {[%emt 00:00:06]} Bf5 {[%clk 00:24:38]} {[%emt 00:00:07]} 16.
Bxf5+ {[%clk 00:26:01]} {[%emt 00:00:15]} Qxf5 {[%clk 00:24:45]} {[%emt
00:00:03]} 17. Nd4 {[%clk 00:26:05]} {[%emt 00:00:07]} Nxd4 {[%emt 00:00:15]}
18. Qxd4 {[%clk 00:26:12]} Bg7 {[%clk 00:24:26]} {[%emt 00:00:22]} 19. Qxg7
{[%clk 00:26:09]} {[%emt 00:00:17]} f6 {[%clk 00:24:29]} {[%emt 00:00:03]} 20.
Re7 {[%clk 00:26:09]} {[%emt 00:00:14]} Kb8 {[%clk 00:23:25]} {[%emt 00:01:13]}
21. Rxc7 {[%clk 00:26:13]} {[%emt 00:00:07]} Rc8 {[%clk 00:23:14]} {[%emt
00:00:17]} 22. Rxb7+ {[%clk 00:26:21]} {[%emt 00:00:06]} Ka8 {[%clk 00:23:02]}
{[%emt 00:00:23]} 23. Rxa7+ {[%clk 00:26:28]} {[%emt 00:00:02]} Kb8 {[%clk
00:22:56]} {[%emt 00:00:17]} 24. Qb7# {[%clk 00:26:36]} {[%emt 00:00:02]} 1-0

[Event "ONJK FGH 2"]
[Site "Enschede, Netherlands"]
[Date "2022.08.13"]
[Round "9.1"]
[White "Ma, Tim"]
[Black "Georgopoulos-Karbouniaris"]
[Result "1-0"]
[TimeControl "25min + 10sec/move"]
[WhiteElo "757"]
[BlackElo "787"]

1. e4 {[%clk 00:25:18]} {[%emt 00:00:01]} e5 {[%clk 00:25:20]} 2. Nf3 {[%clk
00:25:27]} c6 {[%clk 00:25:27]} {[%emt 00:00:02]} 3. Nc3 {[%clk 00:25:30]}
{[%emt 00:00:07]} Nf6 {[%clk 00:25:34]} {[%emt 00:00:03]} 4. Bc4 {[%clk
00:25:38]} {[%emt 00:00:02]} d5 {[%clk 00:25:40]} {[%emt 00:00:04]} 5. exd5
{[%clk 00:25:44]} {[%emt 00:00:04]} cxd5 {[%clk 00:25:49]} {[%emt 00:00:02]} 6.
Bb5+ {[%clk 00:25:27]} {[%emt 00:00:26]} Bd7 {[%clk 00:25:58]} {[%emt
00:00:02]} 7. Bxd7+ {[%clk 00:25:35]} {[%emt 00:00:02]} Nbxd7 {[%clk 00:26:07]}
{[%emt 00:00:02]} 8. O-O {[%clk 00:25:41]} {[%emt 00:00:04]} Bb4 {[%clk
00:26:15]} {[%emt 00:00:02]} 9. d4 {[%clk 00:25:37]} {[%emt 00:00:13]} e4
{[%clk 00:26:07]} {[%emt 00:00:19]} 10. Re1 {[%clk 00:25:44]} {[%emt 00:00:03]}
O-O {[%clk 00:26:10]} {[%emt 00:00:07]} 11. Ne5 {[%clk 00:25:43]} {[%emt
00:00:11]} Nxe5 {[%clk 00:26:13]} {[%emt 00:00:06]} 12. dxe5 {[%clk 00:25:48]}
{[%emt 00:00:05]} Nd7 {[%clk 00:26:15]} {[%emt 00:00:08]} 13. Qxd5 {[%clk
00:25:43]} {[%emt 00:00:15]} Nb6 {[%clk 00:26:07]} {[%emt 00:00:18]} 14. Qxe4
{[%clk 00:25:25]} {[%emt 00:00:28]} Bxc3 {[%clk 00:26:15]} {[%emt 00:00:03]} 15.
bxc3 {[%clk 00:25:30]} {[%emt 00:00:04]} f6 {[%clk 00:26:24]} {[%emt 00:00:02]}
16. Ba3 {[%clk 00:25:25]} {[%emt 00:00:16]} Re8 {[%clk 00:26:24]} {[%emt
00:00:10]} 17. Qd4 {[%clk 00:24:46]} {[%emt 00:00:49]} Rxe5 {[%clk 00:26:05]}
{[%emt 00:00:28]} 18. Rxe5 {[%clk 00:24:24]} {[%emt 00:00:32]} Qxd4 {[%clk
00:26:06]} {[%emt 00:00:10]} 19. cxd4 {[%clk 00:24:29]} {[%emt 00:00:04]} fxe5
{[%clk 00:26:15]} {[%emt 00:00:02]} 20. dxe5 {[%clk 00:24:35]} {[%emt
00:00:04]} Nc4 {[%clk 00:26:23]} {[%emt 00:00:02]} 21. Bd6 {[%clk 00:24:39]}
{[%emt 00:00:05]} Nxd6 {[%clk 00:26:22]} {[%emt 00:00:11]} 22. exd6 {[%clk
00:24:48]} {[%emt 00:00:02]} Rd8 {[%clk 00:26:31]} 23. Rd1 {[%clk 00:24:54]}
{[%emt 00:00:03]} Kf7 {[%clk 00:26:35]} {[%emt 00:00:06]} 24. Kf1 {[%clk
00:24:49]} {[%emt 00:00:16]} Ke6 {[%clk 00:26:43]} {[%emt 00:00:02]} 25. Ke2
{[%clk 00:24:57]} {[%emt 00:00:02]} Rxd6 {[%clk 00:26:49]} {[%emt 00:00:03]} 26.
Rxd6+ {[%clk 00:25:06]} {[%emt 00:00:02]} Kxd6 {[%clk 00:26:57]} {[%emt
00:00:02]} 27. Kd3 {[%clk 00:25:14]} b5 {[%clk 00:27:02]} {[%emt 00:00:05]} 28.
c4 {[%clk 00:25:21]} {[%emt 00:00:03]} bxc4+ {[%clk 00:27:11]} {[%emt
00:00:02]} 29. Kxc4 {[%clk 00:25:30]} {[%emt 00:00:01]} h6 {[%clk 00:27:19]}
{[%emt 00:00:02]} 30. Kb5 {[%clk 00:25:36]} {[%emt 00:00:04]} Kc7 {[%emt
00:00:10]} 31. a4 {[%clk 00:25:44]} Kb7 {[%clk 00:27:30]} {[%emt 00:00:01]} 32.
f4 {[%clk 00:25:52]} {[%emt 00:00:02]} a6+ {[%clk 00:27:36]} {[%emt 00:00:04]}
33. Ka5 {[%clk 00:25:59]} {[%emt 00:00:02]} g6 {[%clk 00:27:38]} {[%emt
00:00:08]} 34. g4 {[%clk 00:26:08]} {[%emt 00:00:02]} g5 {[%clk 00:27:36]}
{[%emt 00:00:12]} 35. f5 {[%clk 00:26:17]} {[%emt 00:00:01]} Kc6 {[%clk
00:27:28]} {[%emt 00:00:18]} 36. f6 {[%clk 00:26:24]} {[%emt 00:00:02]} Kd6
{[%clk 00:27:37]} 37. f7 {[%clk 00:26:30]} {[%emt 00:00:04]} Ke7 {[%clk
00:27:46]} {[%emt 00:00:02]} 38. Kxa6 {[%clk 00:26:39]} {[%emt 00:00:01]} Kxf7
{[%clk 00:27:55]} 39. Kb6 {[%clk 00:26:48]} {[%emt 00:00:01]} Ke6 {[%clk
00:28:03]} {[%emt 00:00:02]} 40. a5 {[%clk 00:26:57]} Ke5 {[%clk 00:28:12]} 41.
a6 {[%clk 00:27:06]} Kf4 {[%clk 00:28:21]} {[%emt 00:00:01]} 42. a7 {[%clk
00:27:15]} Kxg4 {[%clk 00:28:29]} {[%emt 00:00:02]} 43. a8=Q {[%clk 00:27:18]}
{[%emt 00:00:03]} Kh5 {[%clk 00:28:37]} {[%emt 00:00:05]} 44. Qf3+ {[%clk
00:27:24]} {[%emt 00:00:04]} g4 {[%clk 00:28:44]} {[%emt 00:00:03]} 45. Qf5+
{[%clk 00:27:30]} {[%emt 00:00:05]} Kh4 {[%clk 00:28:53]} 46. Qg6 {[%clk
00:27:34]} {[%emt 00:00:06]} h5 {[%clk 00:29:00]} {[%emt 00:00:03]} 47. Qf6+
{[%clk 00:27:36]} {[%emt 00:00:08]} Kh3 {[%clk 00:29:07]} {[%emt 00:00:03]} 48.
Qg5 {[%clk 00:27:44]} {[%emt 00:00:02]} h4 {[%clk 00:29:14]} {[%emt 00:00:03]}
49. Kc5 {[%clk 00:27:51]} {[%emt 00:00:02]} g3 {[%clk 00:29:20]} {[%emt
00:00:05]} 50. hxg3 {[%clk 00:27:56]} {[%emt 00:00:04]} hxg3 {[%clk 00:29:28]}
{[%emt 00:00:03]} 51. Qc1 {[%clk 00:28:04]} {[%emt 00:00:02]} g2 {[%clk
00:29:36]} {[%emt 00:00:02]} 52. Qg1 {[%clk 00:28:13]} Kg3 {[%clk 00:29:44]}
{[%emt 00:00:02]} 53. Kd4 {[%clk 00:28:21]} {[%emt 00:00:01]} Kh3 {[%clk
00:29:52]} {[%emt 00:00:02]} 54. Ke3 {[%clk 00:28:30]} {[%emt 00:00:02]} Kg3
{[%clk 00:30:01]} 55. Ke2 {[%clk 00:28:37]} {[%emt 00:00:03]} Kh3 {[%clk
00:30:10]} 56. Kf2 {[%clk 00:28:45]} {[%emt 00:00:01]} Kg4 {[%clk 00:30:11]}
{[%emt 00:00:10]} 57. Qxg2+ {[%clk 00:28:54]} {[%emt 00:00:01]} Kf4 {[%clk
00:30:20]} {[%emt 00:00:01]} 58. Qg3+ {[%clk 00:29:01]} {[%emt 00:00:02]} Kf5
{[%clk 00:30:29]} {[%emt 00:00:01]} 59. Ke3 {[%clk 00:29:07]} {[%emt 00:00:04]}
Kf6 {[%clk 00:30:38]} {[%emt 00:00:02]} 60. Qf4+ {[%clk 00:29:16]} Ke6 {[%clk
00:30:47]} 61. Kd4 {[%clk 00:29:25]} {[%emt 00:00:02]} Ke7 {[%clk 00:30:54]}
{[%emt 00:00:03]} 62. Qg5+ {[%clk 00:29:30]} {[%emt 00:00:04]} Kd6 {[%clk
00:31:02]} {[%emt 00:00:02]} 63. Qg6+ {[%clk 00:29:39]} {[%emt 00:00:02]} Kc7
{[%clk 00:31:11]} {[%emt 00:00:01]} 64. Kc5 {[%clk 00:29:48]} Kd7 {[%clk
00:31:21]} 65. Kd5 {[%clk 00:29:52]} {[%emt 00:00:06]} Kc7 {[%clk 00:31:29]}
{[%emt 00:00:02]} 66. Qd6+ {[%clk 00:30:01]} {[%emt 00:00:01]} Kb7 {[%clk
00:31:38]} 67. Qc6+ {[%clk 00:30:10]} Ka7 {[%clk 00:31:44]} {[%emt 00:00:04]}
68. Kc5 {[%clk 00:30:13]} {[%emt 00:00:07]} Kb8 {[%clk 00:31:50]} {[%emt
00:00:04]} 69. Qd7 {[%clk 00:30:20]} {[%emt 00:00:03]} Ka8 {[%clk 00:31:59]}
{[%emt 00:00:01]} 70. Kb6 {[%clk 00:30:28]} {[%emt 00:00:02]} Kb8 {[%clk
00:32:08]} {[%emt 00:00:01]} 71. Qd8# {[%emt 00:00:33]} 1-0

[Event "ONJK FGH 2"]
[Site "Enschede, Netherlands"]
[Date "2022.08.13"]
[Round "9.2"]
[White "Zantingh, Kyo"]
[Black "De Wit, Jim"]
[Result "0-1"]
[TimeControl "25min + 10sec/move"]
[WhiteElo "739"]
[BlackElo "889"]

1. e4 {[%clk 00:25:19]} e5 {[%clk 00:25:18]} {[%emt 00:00:02]} 2. Nf3 {[%clk
00:25:27]} {[%emt 00:00:03]} Nc6 {[%clk 00:25:26]} {[%emt 00:00:02]} 3. Bc4
{[%clk 00:25:36]} Bc5 {[%clk 00:25:29]} {[%emt 00:00:07]} 4. c3 {[%clk
00:25:44]} Nf6 {[%clk 00:25:35]} {[%emt 00:00:05]} 5. d4 {[%clk 00:25:53]}
{[%emt 00:00:01]} exd4 {[%clk 00:25:43]} {[%emt 00:00:02]} 6. cxd4 {[%clk
00:26:01]} {[%emt 00:00:02]} Bb4+ {[%clk 00:25:52]} 7. Nc3 {[%emt 00:00:04]}
Bxc3+ {[%clk 00:26:00]} {[%emt 00:00:01]} 8. bxc3 {[%clk 00:26:16]} {[%emt
00:00:02]} Nxe4 {[%clk 00:26:03]} {[%emt 00:00:06]} 9. O-O {[%clk 00:26:24]}
{[%emt 00:00:02]} O-O {[%clk 00:26:08]} {[%emt 00:00:04]} 10. Qd3 {[%clk
00:26:32]} {[%emt 00:00:03]} Nd6 {[%clk 00:26:06]} {[%emt 00:00:13]} 11. Ng5
{[%clk 00:26:40]} {[%emt 00:00:02]} g6 {[%clk 00:26:11]} {[%emt 00:00:04]} 12.
Qh3 {[%clk 00:26:48]} {[%emt 00:00:02]} h5 {[%clk 00:25:56]} {[%emt 00:00:25]}
13. g4 {[%emt 00:00:10]} Nxc4 {[%emt 00:00:02]} 14. gxh5 {[%clk 00:27:04]}
{[%emt 00:00:02]} Kg7 {[%clk 00:25:58]} {[%emt 00:00:08]} 15. hxg6 {[%clk
00:27:13]} {[%emt 00:00:02]} Rh8 {[%clk 00:26:04]} {[%emt 00:00:04]} 16. Qf5
{[%clk 00:27:09]} {[%emt 00:00:14]} Nd6 {[%clk 00:25:59]} {[%emt 00:00:14]} 17.
Qf3 {[%clk 00:26:54]} {[%emt 00:00:24]} f6 {[%clk 00:26:05]} {[%emt 00:00:06]}
18. Ne4 {[%emt 00:00:06]} Nxe4 {[%clk 00:26:11]} {[%emt 00:00:02]} 19. Qxe4
{[%clk 00:27:07]} {[%emt 00:00:02]} Qe8 {[%clk 00:26:15]} {[%emt 00:00:05]} 20.
Qxe8 {[%clk 00:27:10]} {[%emt 00:00:09]} Rxe8 {[%clk 00:26:22]} {[%emt
00:00:02]} 21. Bb2 {[%clk 00:27:17]} {[%emt 00:00:05]} Ne7 {[%clk 00:26:18]}
{[%emt 00:00:13]} 22. Rfe1 {[%clk 00:27:21]} {[%emt 00:00:06]} Kxg6 {[%clk
00:26:22]} {[%emt 00:00:05]} 23. d5 {[%clk 00:27:29]} {[%emt 00:00:03]} Kf7
{[%clk 00:26:26]} {[%emt 00:00:05]} 24. Red1 {[%clk 00:27:33]} {[%emt
00:00:06]} d6 {[%clk 00:26:25]} {[%emt 00:00:09]} 25. c4 {[%clk 00:27:36]}
{[%emt 00:00:10]} Rg8+ {[%clk 00:26:31]} {[%emt 00:00:04]} 26. Kh1 {[%clk
00:27:40]} {[%emt 00:00:05]} Bg4 {[%clk 00:26:26]} {[%emt 00:00:14]} 27. Rd4
{[%clk 00:27:49]} {[%emt 00:00:03]} Bf3# {[%clk 00:26:23]} {[%emt 00:00:02]}
0-1

[Event "ONJK FGH 2"]
[Site "Enschede, Netherlands"]
[Date "2022.08.13"]
[Round "9.3"]
[White "Verwer, Cedric"]
[Black "Okita, Ryoga"]
[Result "1-0"]
[TimeControl "25min + 10sec/move"]
[WhiteElo "552"]
[BlackElo "829"]

1. e4 {[%clk 00:25:18]} {[%emt 00:00:02]} e5 {[%clk 00:25:19]} 2. Nf3 {[%clk
00:25:27]} Nc6 {[%clk 00:25:27]} {[%emt 00:00:02]} 3. d4 {[%clk 00:25:36]}
{[%emt 00:00:02]} exd4 {[%clk 00:25:34]} {[%emt 00:00:03]} 4. Bc4 {[%emt
00:00:03]} h6 {[%clk 00:25:22]} {[%emt 00:00:20]} 5. O-O {[%clk 00:25:22]}
{[%emt 00:00:32]} Bc5 {[%clk 00:25:27]} {[%emt 00:00:06]} 6. c3 {[%clk
00:25:19]} {[%emt 00:00:13]} dxc3 {[%clk 00:25:30]} {[%emt 00:00:07]} 7. Bxf7+
{[%clk 00:25:17]} {[%emt 00:00:12]} Kxf7 {[%clk 00:25:33]} {[%emt 00:00:08]} 8.
Qd5+ {[%clk 00:25:02]} {[%emt 00:00:25]} Ke8 {[%clk 00:25:29]} {[%emt
00:00:14]} 9. Qxc5 {[%clk 00:24:58]} {[%emt 00:00:13]} d6 {[%clk 00:25:33]}
{[%emt 00:00:05]} 10. Qxc3 {[%clk 00:24:53]} {[%emt 00:00:16]} Nf6 {[%clk
00:24:58]} {[%emt 00:00:45]} 11. Nbd2 {[%clk 00:24:17]} {[%emt 00:00:46]} Kf7
{[%clk 00:24:43]} {[%emt 00:00:25]} 12. Qc4+ {[%clk 00:23:37]} {[%emt
00:00:50]} Be6 {[%clk 00:24:50]} {[%emt 00:00:03]} 13. Qb5 {[%clk 00:23:24]}
{[%emt 00:00:24]} Rb8 {[%clk 00:24:36]} {[%emt 00:00:24]} 14. Nc4 {[%clk
00:23:11]} {[%emt 00:00:23]} a6 {[%clk 00:24:40]} {[%emt 00:00:05]} 15. Qb3
{[%clk 00:22:44]} {[%emt 00:00:37]} Na5 {[%clk 00:24:47]} {[%emt 00:00:03]} 16.
Nfe5+ {[%emt 00:02:47]} Kg8 {[%clk 00:23:29]} {[%emt 00:00:06]} 17. Qg3 {[%clk
00:20:52]} {[%emt 00:00:47]} Nxc4 {[%clk 00:23:24]} {[%emt 00:00:14]} 18. Ng6
{[%clk 00:20:22]} {[%emt 00:00:41]} Rh7 {[%clk 00:23:09]} {[%emt 00:00:25]} 19.
Nf4 {[%clk 00:19:52]} {[%emt 00:00:40]} Bf7 {[%clk 00:23:00]} {[%emt 00:00:18]}
20. b3 {[%clk 00:19:51]} {[%emt 00:00:12]} Ne5 {[%clk 00:22:50]} {[%emt
00:00:20]} 21. a4 {[%clk 00:18:58]} {[%emt 00:01:04]} Nxe4 {[%clk 00:22:45]}
{[%emt 00:00:13]} 22. Qe3 {[%clk 00:18:40]} {[%emt 00:00:29]} Nf6 {[%clk
00:22:14]} {[%emt 00:00:41]} 23. Bb2 {[%clk 00:18:26]} {[%emt 00:00:24]} Neg4
{[%clk 00:22:15]} {[%emt 00:00:08]} 24. Qg3 {[%clk 00:18:06]} {[%emt 00:00:32]}
Bxb3 {[%clk 00:22:04]} {[%emt 00:00:20]} 25. Bxf6 {[%clk 00:17:53]} {[%emt
00:00:22]} Nxf6 {[%clk 00:22:13]} {[%emt 00:00:01]} 26. Qxb3+ {[%clk 00:17:27]}
{[%emt 00:00:36]} d5 {[%clk 00:22:06]} {[%emt 00:00:18]} 27. Rad1 {[%clk
00:17:18]} {[%emt 00:00:19]} c6 {[%clk 00:21:59]} {[%emt 00:00:17]} 28. Ne6
{[%clk 00:16:41]} {[%emt 00:00:46]} Qd6 {[%clk 00:21:55]} {[%emt 00:00:12]} 29.
Nd4 {[%clk 00:16:29]} {[%emt 00:00:25]} b5 {[%clk 00:21:38]} {[%emt 00:00:26]}
30. Nf5 {[%clk 00:16:01]} {[%emt 00:00:38]} bxa4 {[%clk 00:21:25]} {[%emt
00:00:24]} 31. Qxa4 {[%clk 00:15:37]} {[%emt 00:00:35]} Qe5 {[%clk 00:21:06]}
{[%emt 00:00:26]} 32. Nd4 {[%clk 00:15:11]} {[%emt 00:00:38]} Qe8 {[%clk
00:20:38]} {[%emt 00:00:35]} 33. Rde1 {[%clk 00:15:04]} {[%emt 00:00:19]} Qc8
{[%clk 00:20:09]} {[%emt 00:00:33]} 34. Nxc6 {[%clk 00:14:55]} {[%emt
00:00:26]} a5 {[%clk 00:19:23]} {[%emt 00:00:55]} 35. Ne7+ {[%clk 00:14:47]}
{[%emt 00:00:19]} Kf7 {[%clk 00:19:11]} {[%emt 00:00:22]} 36. Nxc8 {[%clk
00:14:34]} {[%emt 00:00:22]} Rxc8 {[%clk 00:19:20]} {[%emt 00:00:02]} 37. Qxa5
{[%clk 00:14:18]} {[%emt 00:00:26]} Rc6 {[%clk 00:18:06]} {[%emt 00:01:20]} 38.
Qa7+ {[%clk 00:14:14]} {[%emt 00:00:17]} Kg6 {[%clk 00:18:05]} {[%emt
00:00:06]} 39. f4 {[%clk 00:13:55]} {[%emt 00:00:36]} Kh5 {[%clk 00:17:40]}
{[%emt 00:00:34]} 40. Qf7+ {[%clk 00:13:43]} {[%emt 00:00:22]} g6 {[%clk
00:17:41]} {[%emt 00:00:09]} 41. Re5+ {[%clk 00:13:13]} {[%emt 00:00:40]} Kh4
{[%clk 00:17:07]} {[%emt 00:00:30]} 42. Qxg6 {[%clk 00:12:56]} {[%emt
00:00:40]} Rd6 {[%clk 00:16:17]} {[%emt 00:00:59]} 43. Qg3# {[%clk 00:12:32]}
{[%emt 00:00:26]} 1-0